fUST/lending_fUST_20250615
["ID","MTS","AMOUNT","RATE_DAILY","PERIOD"]
[365940339,1749993043691,-440.34414941,0.00019452,2]
[365940341,1749993043702,-460.0,0.00019452,2]
[365940344,1749993043714,-430.0,0.00019452,2]
[365940346,1749993043725,-460.0,0.00019452,2]
[365940348,1749993043736,-560.0,0.00019452,2]
[365940350,1749993043747,-586.35468164,0.00019452,2]
[365940352,1749993043758,-460.0,0.00019452,2]
[365940355,1749993043770,-460.0,0.00019452,2]
[365940357,1749993043781,-460.0,0.00019452,2]
[365940359,1749993043792,-460.0,0.00019452,2]
[365940361,1749993043804,-387.8954893,0.00019452,2]
[365940364,1749993043816,-460.0,0.00019452,2]
[365940366,1749993043827,-446.50818893,0.00019452,2]
[365940368,1749993043838,-282.12308253,0.00019452,2]
[365940370,1749993043849,-460.0,0.00019452,2]
[365940373,1749993043860,-460.0,0.00019452,2]
[365940375,1749993043875,-400.0,0.00019452,2]
[365940377,1749993043886,-460.0,0.00019452,2]
[365940379,1749993043896,-460.0,0.00019452,2]
[365940381,1749993043908,-447.0449894,0.00019452,2]
[365940384,1749993043918,-460.0,0.00019452,2]
[365940386,1749993043929,-435.86755996,0.00019452,2]
[365940388,1749993043941,-451.02087756,0.00019452,2]
[365940390,1749993043952,-291.67392697,0.00019452,2]
[365940392,1749993043963,-460.0,0.00019452,2]
[365940395,1749993043974,-460.0,0.00019452,2]
[365940397,1749993043985,-460.0,0.00019452,2]
[365940399,1749993043996,-577.78303337,0.00019452,2]
[365940401,1749993044007,-460.0,0.00019452,2]
[365940404,1749993044018,-460.0,0.00019452,2]
[365940406,1749993044030,-460.0,0.00019452,2]
[365940408,1749993044041,-460.0,0.00019452,2]
[365940410,1749993044052,-460.0,0.00019452,2]
[365940412,1749993044063,-460.0,0.00019452,2]
[365940415,1749993044074,-460.0,0.00019452,2]
[365940417,1749993044085,-460.0,0.00019452,2]
[365940419,1749993044096,-414.2837531,0.00019452,2]
[365940421,1749993044107,-460.0,0.00019452,2]
[365940424,1749993044119,-430.0,0.00019452,2]
[365940426,1749993044130,-500.0,0.00019452,2]
[365940428,1749993044141,-438.37662595,0.00019452,2]
[365940430,1749993044152,-460.0,0.00019452,2]
[365940432,1749993044163,-1016.56,0.00019452,2]
[365940435,1749993044175,-460.0,0.00019452,2]
[365940437,1749993044187,-263.5129292,0.00019452,2]
[365940439,1749993044198,-460.0,0.00019452,2]
[365940442,1749993044209,-809.8,0.00019452,2]
[365940444,1749993044220,-412.58586406,0.00019452,2]
[365940446,1749993044230,-460.0,0.00019452,2]
[365940448,1749993044239,-460.0,0.00019452,2]
[365940450,1749993044248,-460.0,0.00019452,2]
[365940452,1749993044257,-460.0,0.00019452,2]
[365940454,1749993044266,-400.0,0.00019452,2]
[365940456,1749993044275,-380.0,0.00019452,2]
[365940458,1749993044285,-460.0,0.00019452,2]
[365940460,1749993044294,-460.0,0.00019452,2]
[365940462,1749993044304,-1111.95,0.00019452,2]
[365940464,1749993044313,-1215.29,0.00019452,2]
[365940466,1749993044322,-460.0,0.00019452,2]
[365940469,1749993044332,-460.0,0.00019452,2]
[365940471,1749993044341,-460.0,0.00019452,2]
[365940490,1749993044350,-1249.59,0.00019452,2]
[365940493,1749993044522,-692.9,0.00019452,2]
[365940495,1749993044535,-460.0,0.00019452,2]
[365940497,1749993044544,-460.0,0.00019452,2]
[365940499,1749993044554,-460.0,0.00019452,2]
[365940501,1749993044564,-460.0,0.00019452,2]
[365940503,1749993044573,-460.0,0.00019452,2]
[365940505,1749993044583,-460.0,0.00019452,2]
[365940508,1749993044592,-460.0,0.00019452,2]
[365940510,1749993044600,-662.72,0.00019452,2]
[365940512,1749993044609,-460.0,0.00019452,2]
[365940513,1749993044618,-460.0,0.00019452,2]
[365940515,1749993044628,-168.95,0.00019452,2]
[365940518,1749993044637,-596.71780289,0.00019452,2]
[365940520,1749993044647,-237.55222512,0.00019452,2]
[365940522,1749993044655,-460.0,0.00019452,2]
[365940524,1749993044665,-460.0,0.00019452,2]
[365940526,1749993044674,-460.0,0.00019452,2]
[365940528,1749993044683,-450.0,0.00019452,2]
[365940530,1749993044691,-460.0,0.00019452,2]
[365940532,1749993044701,-369.68180565,0.00019452,2]
[365940534,1749993044710,-460.0,0.00019452,2]
[365940536,1749993044719,-460.0,0.00019452,2]
[365940538,1749993044728,-297.29018269,0.00019452,2]
[365940540,1749993044738,-460.0,0.00019452,2]
[365940542,1749993044748,-460.0,0.00019452,2]
[365940544,1749993044758,-460.0,0.00019452,2]
[365940547,1749993044767,-460.0,0.00019452,2]
[365940549,1749993044776,-459.24496036,0.00019452,2]
[365940551,1749993044785,-460.0,0.00019452,2]
[365940553,1749993044794,-460.0,0.00019452,2]
[365940555,1749993044804,-430.0,0.00019452,2]
[365940557,1749993044813,-476.56235879,0.00019452,2]
[365940559,1749993044823,-342.57098769,0.00019452,2]
[365940561,1749993044832,-460.0,0.00019452,2]
[365940563,1749993044842,-460.0,0.00019452,2]
[365940565,1749993044851,-460.0,0.00019452,2]
[365940567,1749993044861,-460.0,0.00019452,2]
[365940570,1749993044873,-360.0,0.00019452,2]
[365940572,1749993044883,-460.0,0.00019452,2]
[365940574,1749993044892,-460.0,0.00019452,2]
[365940576,1749993044901,-461.02,0.00019452,2]
[365940578,1749993044910,-460.0,0.00019452,2]
[365940579,1749993044919,-460.0,0.00019452,2]
[365940581,1749993044928,-460.0,0.00019452,2]
[365940583,1749993044937,-341.10801608,0.00019452,2]
[365940585,1749993044946,-460.0,0.00019452,2]
[365940587,1749993044955,-460.0,0.00019452,2]
[365940589,1749993044964,-460.0,0.00019452,2]
[365940591,1749993044973,-460.0,0.00019452,2]
[365940593,1749993044982,-460.0,0.00019452,2]
[365940595,1749993044991,-360.0,0.00019452,2]
[365940597,1749993045001,-532.33,0.00019452,2]
[365940599,1749993045010,-460.0,0.00019452,2]
[365940601,1749993045020,-460.0,0.00019452,2]
[365940604,1749993045030,-460.0,0.00019452,2]
[365940606,1749993045042,-460.0,0.00019452,2]
[365940608,1749993045053,-460.0,0.00019452,2]
[365940610,1749993045062,-187.45986949,0.00019452,2]
[365940612,1749993045071,-460.0,0.00019452,2]
[365940614,1749993045080,-460.0,0.00019452,2]
[365940616,1749993045089,-454.04085624,0.00019452,2]
[365940618,1749993045098,-460.0,0.00019452,2]
[365940620,1749993045107,-460.0,0.00019452,2]
[365940622,1749993045116,-467.28125792,0.00019452,2]
[365940624,1749993045125,-421.7783343,0.00019452,2]
[365940626,1749993045135,-460.0,0.00019452,2]
[365940628,1749993045143,-307.59838783,0.00019452,2]
[365940630,1749993045152,-460.0,0.00019452,2]
[365940632,1749993045162,-460.0,0.00019452,2]
[365940634,1749993045171,-485.92072213,0.00019452,2]
[365940636,1749993045180,-460.0,0.00019452,2]
[365940638,1749993045189,-401.0504009,0.00019452,2]
[365940640,1749993045198,-460.0,0.00019452,2]
[365940642,1749993045207,-460.0,0.00019452,2]
[365940644,1749993045217,-310.0,0.00019452,2]
[365940646,1749993045226,-460.0,0.00019452,2]
[365940648,1749993045235,-460.0,0.00019452,2]
[365940650,1749993045244,-460.0,0.00019452,2]
[365940652,1749993045253,-460.0,0.00019452,2]
[365940654,1749993045262,-460.0,0.00019452,2]
[365940656,1749993045272,-460.0,0.00019452,2]
[365940658,1749993045282,-460.0,0.00019452,2]
[365940660,1749993045291,-460.0,0.00019452,2]
[365940662,1749993045301,-393.31332264,0.00019452,2]
[365940664,1749993045310,-460.0,0.00019452,2]
[365940666,1749993045319,-769.12,0.00019452,2]
[365940668,1749993045329,-370.62152779,0.00019452,2]
[365940670,1749993045338,-460.0,0.00019452,2]
[365940672,1749993045347,-460.0,0.00019452,2]
[365940674,1749993045356,-460.0,0.00019452,2]
[365940676,1749993045365,-460.0,0.00019452,2]
[365940678,1749993045375,-440.0,0.00019452,2]
[365940680,1749993045384,-460.0,0.00019452,2]
[365940682,1749993045393,-460.0,0.00019452,2]
[365940684,1749993045402,-1640.94,0.00019452,2]
[365940686,1749993045411,-460.0,0.00019452,2]
[365940688,1749993045421,-460.0,0.00019452,2]
[365940690,1749993045430,-460.0,0.00019452,2]
[365940692,1749993045439,-460.0,0.00019452,2]
[365940695,1749993045449,-460.0,0.00019452,2]
[365940697,1749993045457,-460.0,0.00019452,2]
[365940699,1749993045466,-460.0,0.00019452,2]
[365940701,1749993045474,-1075.38,0.00019452,2]
[365940703,1749993045483,-414.58505227,0.00019452,2]
[365940705,1749993045492,-237.34797207,0.00019452,2]
[365940707,1749993045501,-434.74176524,0.00019452,2]
[365940709,1749993045512,-1486.5,0.00019452,2]
[365940711,1749993045521,-461.8321999,0.00019452,2]
[365940713,1749993045531,-460.0,0.00019452,2]
[365940715,1749993045540,-267.44472567,0.00019452,2]
[365940717,1749993045549,-460.0,0.00019452,2]
[365940719,1749993045558,-460.0,0.00019452,2]
[365940721,1749993045567,-460.0,0.00019452,2]
[365940722,1749993045576,-460.0,0.00019452,2]
[365940725,1749993045585,-253.99059988,0.00019452,2]
[365940727,1749993045594,-460.0,0.00019452,2]
[365940729,1749993045603,-462.22815629,0.00019452,2]
[365940731,1749993045612,-460.0,0.00019452,2]
[365940733,1749993045621,-460.0,0.00019452,2]
[365940735,1749993045631,-460.0,0.00019452,2]
[365940737,1749993045640,-1125.83,0.00019452,2]
[365940739,1749993045649,-331.24740836,0.00019452,2]
[365940741,1749993045659,-460.0,0.00019452,2]
[365940743,1749993045673,-400.0,0.00019452,2]
[365940745,1749993045682,-460.0,0.00019452,2]
[365940747,1749993045691,-436.10138319,0.00019452,2]
[365940749,1749993045700,-201.05149936,0.00019452,2]
[365940751,1749993045710,-460.0,0.00019452,2]
[365940753,1749993045719,-460.0,0.00019452,2]
[365940755,1749993045729,-460.0,0.00019452,2]
[365940757,1749993045739,-1732.76541202,0.00019514,2]
[365940759,1749993045748,-188.7689299,0.00019721,2]
[365940762,1749993045758,-503.03143341,0.00019721,2]
[365940764,1749993045767,-1000.0,0.00019721,2]
[365940766,1749993045777,-502.67348192,0.00019721,2]
[365940768,1749993045786,-1000.0,0.00019721,2]
[365940770,1749993045796,-1000.0,0.00019721,2]
[365940771,1749993045805,-1000.0,0.00019721,2]
[365940774,1749993045814,-370.0,0.00019726,2]
[365940776,1749993045824,-439.81070319,0.00019726,2]
[365940778,1749993045834,-292.74279179,0.00019726,2]
[365940780,1749993045843,-460.0,0.00019726,2]
[365940782,1749993045852,-424.29944436,0.00019726,2]
[365940784,1749993045862,-460.0,0.00019726,2]
[365940786,1749993045874,-420.0,0.00019726,2]
[365940788,1749993045883,-460.0,0.00019726,2]
[365940789,1749993045892,-460.0,0.00019726,2]
[365940790,1749993045901,-444.35331728,0.00019726,2]
[365940791,1749993045911,-460.0,0.00019726,2]
[365940792,1749993045921,-460.0,0.00019726,2]
[365940793,1749993045930,-460.0,0.00019726,2]
[365940794,1749993045940,-460.0,0.00019726,2]
[365940795,1749993045950,-460.0,0.00019726,2]
[365940796,1749993045960,-460.0,0.00019726,2]
[365940797,1749993045969,-460.0,0.00019726,2]
[365940798,1749993045980,-420.0,0.00019726,2]
[365940799,1749993045989,-360.0,0.00019726,2]
[365940800,1749993045999,-460.0,0.00019726,2]
[365940801,1749993046008,-460.0,0.00019726,2]
[365940802,1749993046017,-500.0,0.00019726,2]
[365940803,1749993046026,-460.0,0.00019726,2]
[365940805,1749993046035,-1016.56,0.00019726,2]
[365940807,1749993046044,-460.0,0.00019726,2]
[365940809,1749993046055,-460.0,0.00019726,2]
[365940811,1749993046063,-809.8,0.00019726,2]
[365940813,1749993046073,-460.0,0.00019726,2]
[365940815,1749993046083,-379.27666489,0.00019726,2]
[365940817,1749993046092,-1111.95,0.00019726,2]
[365940819,1749993046101,-1215.29,0.00019726,2]
[365940821,1749993046110,-460.0,0.00019726,2]
[365940823,1749993046119,-460.0,0.00019726,2]
[365940825,1749993046128,-594.38271689,0.00019726,2]
[365940827,1749993046137,-1249.59,0.00019726,2]
[365940829,1749993046147,-692.9,0.00019726,2]
[365940831,1749993046159,-460.0,0.00019726,2]
[365940833,1749993046168,-460.0,0.00019726,2]
[365940835,1749993046177,-469.27850043,0.00019726,2]
[365940837,1749993046186,-460.0,0.00019726,2]
[365940839,1749993046195,-460.0,0.00019726,2]
[365940841,1749993046205,-460.0,0.00019726,2]
[365940843,1749993046215,-662.72,0.00019726,2]
[365940845,1749993046224,-460.0,0.00019726,2]
[365940847,1749993046233,-460.0,0.00019726,2]
[365940849,1749993046243,-460.0,0.00019726,2]
[365940851,1749993046252,-460.0,0.00019726,2]
[365940853,1749993046261,-178.0452453,0.00019726,2]
[365940855,1749993046271,-460.0,0.00019726,2]
[365940857,1749993046280,-460.0,0.00019726,2]
[365940859,1749993046290,-460.0,0.00019726,2]
[365940861,1749993046300,-460.0,0.00019726,2]
[365940864,1749993046310,-460.0,0.00019726,2]
[365940866,1749993046319,-460.0,0.00019726,2]
[365940867,1749993046329,-214.17275714,0.00019726,2]
[365940869,1749993046338,-470.0,0.00019726,2]
[365940871,1749993046348,-255.2815864,0.00019726,2]
[365940873,1749993046358,-461.02,0.00019726,2]
[365940875,1749993046369,-460.0,0.00019726,2]
[365940877,1749993046378,-448.28597181,0.00019726,2]
[365940879,1749993046387,-460.0,0.00019726,2]
[365940882,1749993046397,-460.0,0.00019726,2]
[365940884,1749993046406,-460.0,0.00019726,2]
[365940886,1749993046415,-479.79,0.00019726,2]
[365940888,1749993046424,-460.0,0.00019726,2]
[365940890,1749993046433,-460.0,0.00019726,2]
[365940892,1749993046442,-234.44,0.00019726,2]
[365940894,1749993046452,-460.0,0.00019726,2]
[365940896,1749993046461,-460.0,0.00019726,2]
[365940898,1749993046472,-460.0,0.00019726,2]
[365940900,1749993046481,-528.25,0.00019726,2]
[365940902,1749993046491,-580.0,0.00019726,2]
[365940904,1749993046500,-460.0,0.00019726,2]
[365940906,1749993046510,-460.0,0.00019726,2]
[365940908,1749993046519,-460.0,0.00019726,2]
[365940910,1749993046528,-460.0,0.00019726,2]
[365940912,1749993046538,-460.0,0.00019726,2]
[365940914,1749993046548,-460.0,0.00019726,2]
[365940916,1749993046558,-460.0,0.00019726,2]
[365940918,1749993046567,-468.68265508,0.00019726,2]
[365940920,1749993046576,-411.63660396,0.00019726,2]
[365940922,1749993046586,-460.0,0.00019726,2]
[365940924,1749993046596,-460.0,0.00019726,2]
[365940926,1749993046605,-460.0,0.00019726,2]
[365940928,1749993046615,-460.0,0.00019726,2]
[365940930,1749993046625,-769.12,0.00019726,2]
[365940932,1749993046635,-460.0,0.00019726,2]
[365940934,1749993046645,-173.21947115,0.00019726,2]
[365940936,1749993046656,-440.0,0.00019726,2]
[365940938,1749993046665,-460.0,0.00019726,2]
[365940940,1749993046675,-460.0,0.00019726,2]
[365940942,1749993046684,-460.0,0.00019726,2]
[365940944,1749993046694,-1640.94,0.00019726,2]
[365940946,1749993046703,-460.0,0.00019726,2]
[365940948,1749993046713,-460.0,0.00019726,2]
[365940950,1749993046722,-460.0,0.00019726,2]
[365940952,1749993046732,-460.0,0.00019726,2]
[365940954,1749993046741,-460.0,0.00019726,2]
[365940956,1749993046752,-460.0,0.00019726,2]
[365940958,1749993046761,-1075.38,0.00019726,2]
[365940960,1749993046771,-1486.5,0.00019726,2]
[365940962,1749993046780,-460.0,0.00019726,2]
[365940964,1749993046790,-460.0,0.00019726,2]
[365940966,1749993046799,-460.0,0.00019726,2]
[365940968,1749993046809,-460.0,0.00019726,2]
[365940970,1749993046818,-460.0,0.00019726,2]
[365940972,1749993046827,-460.0,0.00019726,2]
[365940974,1749993046837,-460.0,0.00019726,2]
[365940976,1749993046846,-460.0,0.00019726,2]
[365940978,1749993046855,-460.0,0.00019726,2]
[365940981,1749993046868,-1125.83,0.00019726,2]
[365940983,1749993046877,-460.0,0.00019726,2]
[365940985,1749993046887,-460.0,0.00019726,2]
[365940987,1749993046896,-460.0,0.00019726,2]
[365940989,1749993046906,-460.0,0.00019726,2]
[365940991,1749993046916,-460.0,0.00019726,2]
[365940993,1749993046925,-420.0,0.00019823,2]
[365940995,1749993046934,-800.0,0.00019999,2]
[365940997,1749993046944,-440.0,0.0002,2]
[365940999,1749993046954,-460.0,0.0002,2]
[365941001,1749993046964,-460.0,0.0002,2]
[365941003,1749993046973,-254.07258353,0.0002,2]
[365941005,1749993046983,-435.1697356,0.0002,2]
[365941007,1749993046992,-260.0,0.0002,2]
[365941009,1749993047001,-460.0,0.0002,2]
[365941011,1749993047011,-460.0,0.0002,2]
[365941013,1749993047020,-420.0,0.0002,2]
[365941015,1749993047029,-380.0,0.0002,2]
[365941017,1749993047039,-511.24893651,0.0002,2]
[365941019,1749993047048,-1016.56,0.0002,2]
[365941022,1749993047059,-460.0,0.0002,2]
[365941024,1749993047067,-460.0,0.0002,2]
[365941026,1749993047076,-809.8,0.0002,2]
[365941028,1749993047085,-450.95301258,0.0002,2]
[365941030,1749993047094,-1111.95,0.0002,2]
[365941032,1749993047103,-1215.29,0.0002,2]
[365941034,1749993047112,-460.0,0.0002,2]
[365941036,1749993047122,-340.0,0.0002,2]
[365941038,1749993047131,-1249.59,0.0002,2]
[365941040,1749993047140,-692.9,0.0002,2]
[365941042,1749993047149,-460.0,0.0002,2]
[365941044,1749993047160,-385.04853886,0.0002,2]
[365941046,1749993047170,-460.0,0.0002,2]
[365941048,1749993047179,-460.0,0.0002,2]
[365941050,1749993047189,-490.02706505,0.0002,2]
[365941052,1749993047198,-662.72,0.0002,2]
[365941054,1749993047208,-460.0,0.0002,2]
[365941056,1749993047217,-460.0,0.0002,2]
[365941058,1749993047227,-460.0,0.0002,2]
[365941060,1749993047237,-400.68403343,0.0002,2]
[365941062,1749993047246,-404.72,0.0002,2]
[365941064,1749993047256,-460.0,0.0002,2]
[365941066,1749993047265,-460.0,0.0002,2]
[365941068,1749993047275,-460.0,0.0002,2]
[365941070,1749993047284,-461.02,0.0002,2]
[365941072,1749993047293,-460.0,0.0002,2]
[365941074,1749993047303,-460.0,0.0002,2]
[365941076,1749993047312,-460.0,0.0002,2]
[365941078,1749993047322,-460.0,0.0002,2]
[365941080,1749993047331,-460.0,0.0002,2]
[365941082,1749993047340,-460.0,0.0002,2]
[365941084,1749993047350,-460.0,0.0002,2]
[365941086,1749993047359,-512.61,0.0002,2]
[365941088,1749993047369,-427.19865049,0.0002,2]
[365941090,1749993047378,-460.0,0.0002,2]
[365941092,1749993047388,-440.0,0.0002,2]
[365941094,1749993047398,-460.0,0.0002,2]
[365941096,1749993047407,-460.0,0.0002,2]
[365941098,1749993047417,-460.0,0.0002,2]
[365941100,1749993047426,-460.0,0.0002,2]
[365941102,1749993047435,-769.12,0.0002,2]
[365941104,1749993047445,-460.0,0.0002,2]
[365941106,1749993047454,-460.0,0.0002,2]
[365941108,1749993047464,-460.0,0.0002,2]
[365941110,1749993047473,-1640.94,0.0002,2]
[365941112,1749993047483,-460.0,0.0002,2]
[365941114,1749993047492,-460.0,0.0002,2]
[365941116,1749993047502,-460.0,0.0002,2]
[365941118,1749993047511,-460.0,0.0002,2]
[365941120,1749993047520,-460.0,0.0002,2]
[365941132,1749993047530,-1075.38,0.0002,2]
[365941135,1749993047653,-1486.5,0.0002,2]
[365941138,1749993047663,-460.0,0.0002,2]
[365941140,1749993047673,-370.620665,0.0002,2]
[365941142,1749993047682,-460.0,0.0002,2]
[365941144,1749993047691,-460.0,0.0002,2]
[365941146,1749993047701,-460.0,0.0002,2]
[365941148,1749993047711,-460.0,0.0002,2]
[365941150,1749993047721,-460.0,0.0002,2]
[365941152,1749993047731,-460.0,0.0002,2]
[365941154,1749993047740,-460.0,0.0002,2]
[365941155,1749993047750,-1125.83,0.0002,2]
[365941158,1749993047759,-460.0,0.0002,2]
[365941159,1749993047769,-460.0,0.0002,2]
[365941162,1749993047780,-460.0,0.0002,2]
[365941164,1749993047789,-273.97692751,0.0002,2]
[365941166,1749993047799,-181.00958402,0.00020037,2]
[365941168,1749993047809,-491.80377,0.00020187,2]
[365941170,1749993047818,-500.0,0.00020268,2]
[365941172,1749993047828,-505.04697599,0.00020268,2]
[365941174,1749993047838,-1500.0,0.00020268,2]
[365941175,1749993047847,-603.41,0.00020273,2]
[365941178,1749993047857,-460.0,0.00020273,2]
[365941180,1749993047872,-1016.56,0.00020273,2]
[365941182,1749993047881,-460.0,0.00020273,2]
[365941184,1749993047891,-460.0,0.00020273,2]
[365941186,1749993047901,-809.8,0.00020273,2]
[365941188,1749993047911,-1111.95,0.00020273,2]
[365941190,1749993047921,-1215.29,0.00020273,2]
[365941192,1749993047931,-460.0,0.00020273,2]
[365941194,1749993047941,-1249.59,0.00020273,2]
[365941196,1749993047951,-692.9,0.00020273,2]
[365941198,1749993047960,-215.91863891,0.00020273,2]
[365941200,1749993047970,-460.0,0.00020273,2]
[365941202,1749993047979,-460.0,0.00020273,2]
[365941204,1749993047989,-662.72,0.00020273,2]
[365941206,1749993047999,-460.0,0.00020273,2]
[365941208,1749993048008,-410.0,0.00020273,2]
[365941209,1749993048017,-460.0,0.00020273,2]
[365941212,1749993048027,-460.0,0.00020273,2]
[365941214,1749993048037,-182.76,0.00020273,2]
[365941216,1749993048047,-473.23,0.00020273,2]
[365941218,1749993048057,-461.02,0.00020273,2]
[365941220,1749993048067,-460.0,0.00020273,2]
[365941222,1749993048076,-460.0,0.00020273,2]
[365941224,1749993048086,-460.0,0.00020273,2]
[365941226,1749993048095,-460.0,0.00020273,2]
[365941228,1749993048105,-460.0,0.00020273,2]
[365941230,1749993048114,-460.0,0.00020273,2]
[365941231,1749993048124,-460.0,0.00020273,2]
[365941233,1749993048133,-414.95503632,0.00020273,2]
[365941235,1749993048143,-460.0,0.00020273,2]
[365941236,1749993048152,-460.0,0.00020273,2]
[365941237,1749993048162,-769.12,0.00020273,2]
[365941238,1749993048171,-460.0,0.00020273,2]
[365941239,1749993048181,-460.0,0.00020273,2]
[365941240,1749993048190,-460.0,0.00020273,2]
[365941241,1749993048200,-1640.94,0.00020273,2]
[365941242,1749993048210,-460.0,0.00020273,2]
[365941243,1749993048219,-460.0,0.00020273,2]
[365941244,1749993048229,-460.0,0.00020273,2]
[365941245,1749993048239,-460.0,0.00020273,2]
[365941246,1749993048249,-460.0,0.00020273,2]
[365941247,1749993048258,-1075.38,0.00020273,2]
[365941248,1749993048268,-1486.5,0.00020273,2]
[365941249,1749993048278,-460.0,0.00020273,2]
[365941250,1749993048287,-274.64349668,0.00020273,2]
[365941251,1749993048296,-460.0,0.00020273,2]
[365941252,1749993048306,-460.0,0.00020273,2]
[365941253,1749993048315,-460.0,0.00020273,2]
[365941254,1749993048324,-460.0,0.00020273,2]
[365941255,1749993048334,-460.0,0.00020273,2]
[365941256,1749993048343,-1125.83,0.00020273,2]
[365941257,1749993048352,-460.0,0.00020273,2]
[365941258,1749993048362,-460.0,0.00020273,2]
[365941259,1749993048373,-500.0,0.00020392,2]
[365941260,1749993048382,-177.92407056,0.00020519,2]
[365941261,1749993048392,-273.617,0.00020519,2]
[365941262,1749993048401,-440.16,0.00020538,3]
[365941263,1749993048411,-160.0,0.00020547,2]
[365941264,1749993048420,-460.0,0.00020547,2]
[365941265,1749993048429,-1016.56,0.00020547,2]
[365941266,1749993048439,-460.0,0.00020547,2]
[365941267,1749993048448,-460.0,0.00020547,2]
[365941268,1749993048458,-809.8,0.00020547,2]
[365941269,1749993048467,-1111.95,0.00020547,2]
[365941270,1749993048476,-1215.29,0.00020547,2]
[365941272,1749993048486,-460.0,0.00020547,2]
[365941273,1749993048495,-1249.59,0.00020547,2]
[365941274,1749993048505,-692.9,0.00020547,2]
[365941275,1749993048515,-460.0,0.00020547,2]
[365941277,1749993048524,-460.0,0.00020547,2]
[365941279,1749993048534,-662.72,0.00020547,2]
[365941281,1749993048543,-460.0,0.00020547,2]
[365941283,1749993048553,-243.47723914,0.00020547,2]
[365941285,1749993048562,-215.74,0.00020547,2]
[365941287,1749993048571,-461.02,0.00020547,2]
[365941289,1749993048582,-460.0,0.00020547,2]
[365941291,1749993048591,-193.91,0.00020547,2]
[365941293,1749993048601,-460.0,0.00020547,2]
[365941295,1749993048610,-460.0,0.00020547,2]
[365941297,1749993048619,-500.0,0.00020547,2]
[365941299,1749993048629,-460.0,0.00020547,2]
[365941301,1749993048639,-504.39366065,0.00020547,2]
[365941303,1749993048648,-460.0,0.00020547,2]
[365941306,1749993048658,-460.0,0.00020547,2]
[365941307,1749993048667,-769.12,0.00020547,2]
[365941309,1749993048678,-460.0,0.00020547,2]
[365941311,1749993048688,-436.8,0.00020547,2]
[365941314,1749993048697,-460.0,0.00020547,2]
[365941315,1749993048707,-1640.94,0.00020547,2]
[365941317,1749993048717,-460.0,0.00020547,2]
[365941319,1749993048726,-569.531797,0.00020547,2]
[365941321,1749993048736,-246.5508355,0.00020547,2]
[365941323,1749993048745,-460.0,0.00020547,2]
[365941326,1749993048755,-460.0,0.00020547,2]
[365941328,1749993048765,-1075.38,0.00020547,2]
[365941330,1749993048775,-1486.5,0.00020547,2]
[365941332,1749993048784,-460.0,0.00020547,2]
[365941334,1749993048794,-460.0,0.00020547,2]